fUST/lending_fUST_20250311
["ID","MTS","AMOUNT","RATE_DAILY","PERIOD"]
[355825969,1741624242134,-500.0,0.00045873,10]
[355825970,1741624242144,-500.34275334,0.00045873,10]
[355825971,1741624242154,-500.0,0.00045873,10]
[355825972,1741624242163,-351.64286178,0.00045873,10]
[355825973,1741624242173,-303.67528419,0.00045873,10]
[355825974,1741624242184,-536.4177329,0.00045873,10]
[355825975,1741624242195,-500.0,0.00045873,10]
[355825976,1741624242205,-500.0,0.00045873,3]
[355825977,1741624242214,-503.86005574,0.00045873,10]
[355825978,1741624242224,-500.0,0.00045873,10]
[355825979,1741624242234,-500.0,0.00045873,10]
[355825980,1741624242244,-600.0,0.00045873,10]
[355825981,1741624242254,-500.0,0.00045873,10]
[355825982,1741624242264,-500.0,0.00045873,10]
[355825983,1741624242274,-500.0,0.00045873,10]
[355825984,1741624242284,-1000.0,0.0004588,2]
[355825985,1741624242295,-1000.0,0.0004588,2]
[355825986,1741624242305,-1000.0,0.0004588,2]
[355825987,1741624242319,-1000.0,0.0004588,2]
[355825988,1741624242343,-1000.0,0.0004588,2]
[355825989,1741624242361,-1000.0,0.0004588,2]
[355825990,1741624242386,-423.43563627,0.0004588,2]
[355825991,1741624242409,-31205.9533229,0.0004588,4]
[355825992,1741624242429,-5885.34693617,0.0004588,4]
[355825993,1741624242451,-187235.719937,0.0004589,4]
[355825994,1741624242471,-35312.081617,0.0004589,4]
[355825995,1741624242489,-200000.0,0.000459,30]
[355825996,1741624242512,-100000.0,0.000459,30]
[355825997,1741624242536,-31205.9533229,0.0004599,4]
[355825998,1741624242557,-5885.34693617,0.0004599,4]
[355825999,1741624242574,-5708.0,0.00046,7]
[355826000,1741624242596,-3433.53,0.00046,120]
[355826001,1741624242613,-3434.04555102,0.00046,120]
[355826002,1741624242630,-1926.61453931,0.00046,2]
[355826003,1741624242646,-2036.53070605,0.00046,120]
[355826004,1741624242665,-151.0,0.000463,23]
[355826005,1741624242684,-175.57,0.00046369,30]
[355826006,1741624242702,-1218.849284,0.000464,2]
[355826007,1741624242719,-174.93216427,0.00046432,2]
[355826008,1741624242737,-500.0,0.00046473,7]
[355826009,1741624242757,-504.97635719,0.00046473,10]
[355826010,1741624242773,-500.0,0.00046473,10]
[355826011,1741624242794,-500.0,0.00046473,10]
[355826012,1741624242812,-500.0,0.00046473,10]
[355826013,1741624242831,-500.02122353,0.00046473,5]
[355826014,1741624242849,-513.59064664,0.00046473,10]
[355826015,1741624242867,-500.0,0.00046473,10]
[355826016,1741624242886,-500.27130163,0.00046473,10]
[355826017,1741624242905,-160.0,0.00046489,7]
[355826018,1741624242924,-31205.9533229,0.0004649,4]
[355826019,1741624242942,-29426.7346809,0.0004649,4]
[355826020,1741624242959,-21585.60760953,0.000465,47]
[355826021,1741624242978,-200000.0,0.000465,30]
[355826022,1741624242996,-500.0,0.00046532,2]
[355826023,1741624243015,-1000.0,0.00046575,2]
[355826024,1741624243033,-4195.05,0.00046575,120]
[355826025,1741624243052,-6000.0,0.00046575,10]
[355826026,1741624243070,-168.6647043,0.0004658,120]
[355826027,1741624243088,-168.6647043,0.0004658,120]
[355826028,1741624243107,-168.6647043,0.0004658,120]
[355826029,1741624243125,-168.6647043,0.0004658,120]
[355826030,1741624243149,-168.6647043,0.0004658,120]
[355826031,1741624243167,-168.66,0.0004658,120]
[355826032,1741624243185,-157.42039068,0.0004658,120]
[355826034,1741624243204,-157.42039068,0.0004658,120]
[355826036,1741624243221,-157.42039068,0.0004658,120]
[355826039,1741624243238,-157.42039068,0.0004658,120]
[355826044,1741624243255,-157.42039068,0.0004658,120]
[355826048,1741624243266,-157.42039068,0.0004658,120]
[355826051,1741624243276,-157.42039068,0.0004658,120]
[355826069,1741624243286,-157.42039068,0.0004658,120]
[355826070,1741624243499,-157.42039068,0.0004658,120]
[355826071,1741624243509,-157.42039068,0.0004658,120]
[355826072,1741624243519,-157.42039068,0.0004658,120]
[355826073,1741624243529,-157.42039068,0.0004658,120]
[355826074,1741624243539,-157.42039068,0.0004658,120]
[355826075,1741624243551,-157.42039068,0.0004658,120]
[355826076,1741624243562,-157.42,0.0004658,120]
[355826077,1741624243572,-158.66,0.0004658,120]
[355826078,1741624243582,-489.84898955,0.0004658,120]
[355826079,1741624243593,-489.84898955,0.0004658,120]
[355826080,1741624243603,-489.84898955,0.0004658,120]
[355826081,1741624243613,-489.84898955,0.0004658,120]
[355826082,1741624243623,-489.84898955,0.0004658,120]
[355826083,1741624243633,-489.84898955,0.0004658,120]
[355826084,1741624243644,-489.84898955,0.0004658,120]
[355826085,1741624243654,-489.84898955,0.0004658,120]
[355826086,1741624243663,-489.84898955,0.0004658,120]
[355826087,1741624243673,-489.84898955,0.0004658,120]
[355826088,1741624243683,-489.84898955,0.0004658,120]
[355826089,1741624243693,-489.84898955,0.0004658,120]
[355826090,1741624243702,-489.84898955,0.0004658,120]
[355826091,1741624243712,-489.84898955,0.0004658,120]
[355826092,1741624243721,-489.84898955,0.0004658,120]
[355826093,1741624243730,-489.84898955,0.0004658,120]
[355826094,1741624243740,-489.84898955,0.0004658,120]
[355826095,1741624243750,-489.84898955,0.0004658,120]
[355826096,1741624243760,-489.84898955,0.0004658,120]
[355826097,1741624243769,-489.84,0.0004658,120]
[355826098,1741624243779,-1142.98097561,0.0004658,120]
[355826099,1741624243789,-1142.98097561,0.0004658,120]
[355826100,1741624243804,-1142.98097561,0.0004658,120]
[355826101,1741624243814,-1142.98097561,0.0004658,120]
[355826102,1741624243824,-1142.98097561,0.0004658,120]
[355826103,1741624243834,-1142.98097561,0.0004658,120]
[355826104,1741624243845,-1142.98097561,0.0004658,120]
[355826105,1741624243855,-1142.98097561,0.0004658,120]
[355826106,1741624243865,-1142.98097561,0.0004658,120]
[355826107,1741624243875,-1142.98097561,0.0004658,120]
[355826108,1741624243885,-1142.98097561,0.0004658,120]
[355826109,1741624243894,-1142.98097561,0.0004658,120]
[355826110,1741624243905,-1142.98097561,0.0004658,120]
[355826111,1741624243915,-1142.98097561,0.0004658,120]
[355826112,1741624243924,-1142.98097561,0.0004658,120]
[355826113,1741624243934,-1142.98097561,0.0004658,120]
[355826114,1741624243944,-1142.98097561,0.0004658,120]
[355826115,1741624243953,-1142.98097561,0.0004658,120]
[355826116,1741624243962,-1142.98097561,0.0004658,120]
[355826117,1741624243972,-1142.98,0.0004658,120]
[355826118,1741624243982,-206.51,0.000466,30]
[355826119,1741624243991,-689.01,0.000466,30]
[355826120,1741624244002,-18189.54,0.000466,30]
[355826121,1741624244012,-500.0,0.00046673,10]
[355826122,1741624244021,-500.0,0.00046673,10]
[355826123,1741624244031,-500.95458269,0.00046673,3]
[355826124,1741624244041,-500.0,0.00046673,10]
[355826125,1741624244052,-500.0,0.00046673,10]
[355826126,1741624244061,-502.28483876,0.00046673,5]
[355826127,1741624244071,-500.0,0.00046673,10]
[355826128,1741624244081,-500.0,0.00046673,10]
[355826129,1741624244091,-500.0,0.00046673,10]
[355826130,1741624244101,-260.77029428,0.00046673,10]
[355826131,1741624244111,-213.98107202,0.00046673,10]
[355826133,1741624244120,-150.0,0.00046673,10]
[355826134,1741624244132,-255.29631412,0.00046673,10]
[355826135,1741624244142,-150.0,0.00046673,10]
[355826136,1741624244151,-150.0,0.00046673,10]
[355826137,1741624244160,-5885.34693617,0.0004668,4]
[355826138,1741624244171,-85143.96681528,0.0004669,36]
[355826139,1741624244180,-23541.3877447,0.0004669,4]
[355826140,1741624244190,-200000.0,0.000467,30]
[355826141,1741624244201,-250.0,0.000467,14]
[355826142,1741624244211,-250.0,0.000467,14]
[355826143,1741624244221,-250.0,0.000467,14]
[355826144,1741624244231,-250.0,0.000467,14]
[355826145,1741624244240,-250.0,0.000467,14]
[355826146,1741624244250,-250.0,0.000467,14]
[355826148,1741624244260,-171443.13156899,0.000468,30]
[355826150,1741624244270,-556254.03137879,0.00047,120]
[355826161,1741624245481,-268.6425,0.00035,5]
[355826162,1741624245491,-268.6425,0.00036126,5]
[355826163,1741624245501,-1743.7623578,0.000399,8]
[355826164,1741624245511,-500.0,0.00039973,5]
[355826165,1741624245520,-748.31,0.0004,30]
[355826166,1741624245531,-1743.76235754,0.00040452,8]
[355826167,1741624245540,-1743.76235754,0.00041003,9]
[355826168,1741624245552,-1743.76235754,0.00041555,9]
[355826169,1741624245562,-1743.76235754,0.00042107,9]
[355826170,1741624245572,-748.31,0.000424,30]
[355826171,1741624245582,-1743.76235754,0.00042659,9]
[355826172,1741624245593,-1239.83,0.000438,30]
[355826173,1741624245603,-748.31,0.00045,30]
[355826174,1741624245614,-647.57618497,0.00045452,10]
[355826175,1741624245625,-1239.83,0.000459,30]
[355826176,1741624245634,-748.31,0.000467,30]
[355826177,1741624245644,-45071.98416036,0.00047,120]
[355826178,1741624245744,-829.91836711,0.00047,120]
[355826209,1741624337593,500.0,0.00028,10]
[355826210,1741624353506,500.0,0.00028,10]
[355826211,1741624353867,500.0,0.00028,10]
[355826212,1741624354224,700.0,0.00028,10]
[355826214,1741624451832,443.3366809,0.0003,120]
[355826215,1741624455215,160.0,0.0002,3]
[355826216,1741624456467,160.0,0.0002,3]
[355826219,1741624565496,385.69618198,0.000281,5]
[355826220,1741624568873,500.0,0.000281,5]
[355826221,1741624572770,500.0,0.000281,5]
[355826222,1741624573481,500.0,0.000281,5]
[355826223,1741624574045,531.49308774,0.000281,5]
[355826224,1741624582193,500.0,0.000281,5]
[355826225,1741624584922,500.0,0.000281,5]
[355826226,1741624586537,-166.58345827,0.0002791,2]
[355826227,1741624586560,-300.0,0.00028009,2]
[355826228,1741624586586,-500.0,0.0002801,2]
[355826229,1741624586610,-500.0,0.0002801,2]
[355826230,1741624586634,-190.0,0.0002801,2]
[355826231,1741624586656,-514.25124596,0.0002801,2]
[355826232,1741624586681,-500.0,0.0002801,2]
[355826233,1741624586704,-500.0,0.0002801,2]
[355826234,1741624586727,-500.0,0.0002801,2]
[355826235,1741624586749,-500.0,0.000281,2]
[355826236,1741624586771,-420.0,0.0003025,2]
[355826237,1741624586795,-14101.16529577,0.000309,2]
[355826238,1741624654739,-400.0,0.00030899,2]
[355826239,1741624654763,-5898.83470423,0.000309,2]
[355826240,1741624654786,-1395.00988609,0.000309,5]
[355826241,1741624654809,-1395.00988603,0.00031797,6]
[355826242,1741624654832,-1395.00988603,0.00032693,6]
[355826243,1741624654855,-1318.0204765,0.00033168,2]
[355826244,1741624654879,-560.0,0.00033271,2]
[355826245,1741624654902,-901.085489,0.00033441,2]
[355826246,1741624654929,-1000.0,0.00033579,5]
[355826247,1741624654951,-1000.0,0.00033579,5]
[355826248,1741624654973,-1000.0,0.00033579,5]
[355826249,1741624654994,-1000.0,0.00033579,5]
[355826250,1741624655018,-1000.0,0.00033579,5]
[355826251,1741624655040,-1395.00988603,0.0003359,6]
[355826252,1741624655061,-500.0,0.000336,5]
[355826253,1741624655085,-500.0,0.00034485,2]
[355826254,1741624655106,-1395.00988603,0.00034486,6]
[355826255,1741624655128,-176.532,0.00035,5]
[355826256,1741624655151,-1395.00988603,0.00035383,7]
[355826257,1741624655173,-783.0,0.00035826,2]
[355826258,1741624655364,-176.532,0.00036158,5]
[355826259,1741624655389,-650.59700728,0.000362,98]
[355826260,1741624655414,-650.59700728,0.000362,98]
[355826261,1741624690491,-1395.00988603,0.00036279,7]
[355826262,1741624690516,-250.0,0.00036626,2]
[355826263,1741624690542,-188.67,0.00037078,2]
[355826264,1741624690566,-335.5359455,0.00037146,2]
[355826265,1741624690596,-1395.00988603,0.00037176,7]
[355826266,1741624690622,-278.54090878,0.00037251,15]
[355826267,1741624690649,-389.55971509,0.00037251,15]
[355826268,1741624690679,-19882.67365857,0.00037252,11]
[355826270,1741624835096,200.0,0.00027,120]
[355826273,1741625120399,37456.81919435,0.0003,3]
[355826274,1741625200735,50000.0,0.00029,3]
[355826275,1741625231944,50000.0,0.00029,3]
[355826277,1741625284717,50000.0,0.00028,3]
[355826278,1741625346155,-252.42419032,0.00030262,2]
[355826279,1741625346177,-1625.64361604,0.00033718,2]
[355826378,1741625437906,-1160.80711686,0.00033718,2]
[355826379,1741625437935,-464.84200068,0.00035152,2]
[355826380,1741625437965,-974.86864689,0.00036379,2]
[355826381,1741625437996,-400.0,0.00036849,2]
[355826382,1741625438021,-50000.0,0.0003685,120]
[355826383,1741625438048,-1023.00724991,0.000369,7]
[355826384,1741625438067,-272.69180057,0.0003705,15]
[355826385,1741625438100,-194.97863614,0.0003705,15]
[355826386,1741625438129,-4702.84653353,0.00037051,2]
[355826388,1741625438156,-829.93937814,0.00037151,2]
[355826391,1741625438176,-15248.41708903,0.00037252,11]
[355826394,1741625438195,-1023.00724975,0.00037555,7]
[355826397,1741625438214,-830.65493354,0.00038153,3]
[355826400,1741625438234,-185.29,0.00038153,3]
[355826404,1741625438254,-1616.55229597,0.00038154,2]
[355826405,1741625438272,-160.0,0.00038163,3]
[355826406,1741625438291,-42990.8064788,0.00038163,3]
[355826408,1741625438309,-500.0,0.00038173,2]
[355826409,1741625438329,-24900.0,0.00038173,2]
[355826410,1741625438349,-1023.00724975,0.0003821,8]
[355826411,1741625438368,-830.65493354,0.0003855,3]
[355826412,1741625438387,-2800.0,0.0003856,60]
[355826413,1741625438406,-500.0,0.0003868,5]
[355826414,1741625438424,-500.0,0.0003885,2]
[355826415,1741625438441,-500.0,0.0003885,2]
[355826416,1741625438459,-500.0,0.0003885,5]
[355826417,1741625438477,-500.0,0.0003885,5]
[355826418,1741625438494,-723.63886345,0.0003886,2]
[355826419,1741625438512,-1023.00724975,0.00038866,8]
[355826420,1741625438530,-830.65493354,0.0003895,3]
[355826421,1741625438548,-30000.0,0.0003896,30]
[355826422,1741625438566,-15568.29314569,0.0003896,30]
[355826423,1741625438584,-1437.64,0.00039,30]
[355826424,1741625438602,-1198.8,0.00039,30]
[355826425,1741625438620,-165.09,0.00039,30]
[355826426,1741625438638,-10056.96,0.00039,30]
[355826427,1741625438656,-4702.84653351,0.00039029,2]
[355826428,1741625438673,-560.0,0.00039435,5]
[355826429,1741625438690,-1023.00724975,0.00039521,8]
[355826430,1741625438707,-189.19,0.00039865,2]
[355826431,1741625438728,-1813.10512384,0.0004,15]
[355826432,1741625438738,-416.66666667,0.00040036,2]
[355826433,1741625438749,-318.64959327,0.00040117,2]
[355826434,1741625438990,-464.84200068,0.00040152,2]
[355826435,1741625439000,-1023.00724975,0.00040176,8]
[355826436,1741625439010,-1023.00724975,0.00040831,8]
[355826437,1741625439020,-4702.84653351,0.00041008,28]
[355826438,1741625439029,-830.65493354,0.0004108,3]
[355826439,1741625439039,-42990.8064788,0.0004109,3]
[355826440,1741625439049,-210.22102673,0.00041096,2]
[355826441,1741625439060,-867.89,0.000411,30]
[355826442,1741625439070,-1198.8,0.000411,30]
[355826443,1741625439079,-190.63742788,0.000411,30]
[355826444,1741625439089,-165.09,0.000411,30]
[355826445,1741625439102,-1437.64,0.000412,30]
[355826446,1741625439112,-723.63886345,0.0004122,2]
[355826447,1741625439122,-10056.96,0.000413,30]
[355826448,1741625439132,-1023.00724975,0.00041486,9]
[355826449,1741625439143,-171.451,0.00042135,63]
[355826450,1741625439158,-1023.00724975,0.00042141,9]
[355826451,1741625439168,-783.0,0.00042202,5]
[355826452,1741625439178,-1813.10512384,0.000424,15]
[355826453,1741625439187,-1023.00724975,0.00042797,9]
[355826454,1741625439199,-4702.84653351,0.00042986,28]
[355826455,1741625439209,-159.754479,0.00043045,3]
[355826456,1741625439220,-202.096084,0.00043045,3]
[355826457,1741625439231,-200.0,0.00043111,2]
[355826458,1741625439243,-1198.8,0.000432,30]
[355826459,1741625439254,-165.09,0.000432,30]
[355826460,1741625439263,-1023.00724975,0.00043452,9]
[355826461,1741625439274,-1333.0,0.00043562,120]
[355826462,1741625439284,-723.63886345,0.0004358,2]
[355826463,1741625439294,-867.89,0.000436,30]
[355826464,1741625439303,-1023.00724975,0.00044107,9]
[355826465,1741625439313,-1000.0,0.00044159,10]
[355826466,1741625439323,-1000.0,0.00044329,2]
[355826467,1741625439332,-1000.0,0.00044329,10]
[355826468,1741625439342,-1000.0,0.00044329,10]
[355826469,1741625439355,-1023.00724975,0.00044762,10]
[355826470,1741625439365,-1964.19721749,0.000448,19]
[355826471,1741625439375,-1437.64,0.000448,30]
[355826472,1741625439385,-10056.96,0.000448,30]
[355826473,1741625439395,-776.99658538,0.00044964,2]
[355826474,1741625439405,-4702.84653351,0.00044965,28]
[355826475,1741625439415,-9500.0,0.00045,2]
[355826476,1741625439425,-178.75080625,0.00045,44]
[355826477,1741625439435,-464.84200068,0.00045152,2]
[355826478,1741625439445,-1097.0,0.00045163,5]
[355826479,1741625439455,-776.99658538,0.00045407,2]
[355826480,1741625439465,-1023.00724975,0.00045417,10]
[355826481,1741625439475,-167.7966245,0.00045678,30]
[355826482,1741625439484,-776.99658538,0.00045692,2]
[355826483,1741625439494,-867.89,0.000457,30]
[355826484,1741625439504,-282.72,0.0004588,30]
[355826486,1741625439514,-1198.8,0.000459,30]
[355826488,1741625439524,-776.99658538,0.00045921,2]
[355826489,1741625439533,-723.63886345,0.0004594,2]
[355826490,1741625439544,-296.17367756,0.00046027,2]
[355826491,1741625439554,-1023.00724975,0.00046072,10]
[355826492,1741625439563,-776.99658538,0.0004621,2]
[355826493,1741625439573,-776.99658539,0.00046367,2]
[355826494,1741625439582,-830.65493354,0.0004649,4]
[355826495,1741625439591,-167.7966245,0.000465,120]
[355826496,1741625439603,-167.7966245,0.000465,120]
[355826497,1741625439612,-167.7966245,0.000465,120]
[355826498,1741625439622,-167.7966245,0.000465,120]
[355826499,1741625439632,-167.7966245,0.000465,120]
[355826501,1741625439642,-167.7966245,0.000465,120]
[355826502,1741625439652,-167.7966245,0.000465,120]
[355826504,1741625439662,-167.7966245,0.000465,120]
[355826505,1741625439673,-167.7966245,0.000465,120]
[355826506,1741625439683,-167.7966245,0.000465,120]
[355826507,1741625439693,-167.7966245,0.000465,120]
[355826509,1741625439704,-167.7966245,0.000465,120]
[355826510,1741625439714,-167.7966245,0.000465,120]
[355826512,1741625439724,-167.7966245,0.000465,120]
[355826513,1741625439735,-167.7966245,0.000465,120]
[355826514,1741625439745,-335.593249,0.000465,120]
[355826515,1741625439756,-167.7966245,0.000465,120]
[355826516,1741625439766,-151.0,0.000465,120]
[355826517,1741625439777,-151.0,0.000465,120]
[355826518,1741625439786,-151.0,0.000465,120]
[355826519,1741625439797,-151.0,0.000465,120]
[355826521,1741625439806,-151.0,0.000465,120]
[355826522,1741625439816,-151.0,0.000465,120]
[355826524,1741625439827,-151.0,0.000465,120]
[355826526,1741625439837,-151.0,0.000465,120]
[355826529,1741625439854,-151.0,0.000465,120]
[355826530,1741625439863,-151.0,0.000465,120]
[355826533,1741625439874,-151.0,0.000465,120]
[355826534,1741625439883,-151.0,0.000465,120]
[355826536,1741625439893,-151.0,0.000465,120]
[355826538,1741625439904,-151.0,0.000465,120]
[355826540,1741625439913,-151.0,0.000465,120]
[355826541,1741625439924,-151.0,0.000465,120]
[355826542,1741625439933,-151.0,0.000465,120]
[355826544,1741625439943,-151.0,0.000465,120]
[355826546,1741625439954,-151.0,0.000465,120]
[355826547,1741625439965,-151.0,0.000465,120]
[355826549,1741625439975,-151.0,0.000465,120]
[355826551,1741625439985,-151.0,0.000465,120]
[355826553,1741625439994,-151.0,0.000465,120]
[355826554,1741625440005,-151.0,0.000465,120]
[355826556,1741625440015,-151.0,0.000465,120]
[355826557,1741625440026,-151.0,0.000465,120]
[355826558,1741625440035,-151.0,0.000465,120]
[355826559,1741625440045,-151.0,0.000465,120]
[355826560,1741625440056,-151.0,0.000465,120]
[355826561,1741625440066,-151.0,0.000465,120]
[355826562,1741625440076,-151.0,0.000465,120]
[355826563,1741625440086,-151.0,0.000465,120]
[355826565,1741625440101,-151.0,0.000465,120]
[355826566,1741625440112,-151.0,0.000465,120]
[355826568,1741625440124,-151.0,0.000465,120]
[355826570,1741625440136,-151.0,0.000465,120]
[355826572,1741625440149,-151.0,0.000465,120]
[355826573,1741625440162,-151.0,0.000465,120]
[355826574,1741625440173,-151.0,0.000465,120]
[355826575,1741625440185,-151.0,0.000465,120]
[355826576,1741625440196,-151.0,0.000465,120]
[355826577,1741625440206,-151.0,0.000465,120]
[355826578,1741625440217,-207.570518,0.000465,120]
[355826579,1741625440228,-1437.64,0.000465,30]
[355826580,1741625440239,-10056.96,0.000465,30]
[355826581,1741625440249,-830.65493354,0.00046555,4]
[355826582,1741625440259,-42990.8064788,0.00046565,4]
[355826583,1741625440271,-1010.88,0.00046575,2]
[355826584,1741625440281,-15568.29314569,0.00046575,10]
[355826585,1741625440291,-6000.0,0.00046575,10]
[355826586,1741625440302,-1023.00724975,0.00046728,10]
[355826587,1741625440313,-500.0,0.00046844,10]
[355826588,1741625440322,-500.0,0.00046844,10]
[355826589,1741625440332,-350.53900052,0.00046862,10]
[355826590,1741625440347,-1280.03158855,0.0004689,2]
[355826591,1741625440358,-830.65493354,0.00046943,4]
[355826592,1741625440369,-4702.84653351,0.00046943,28]
[355826593,1741625440378,-42990.8064788,0.00046952,4]
[355826594,1741625440388,-830.65493354,0.0004697,4]
[355826595,1741625440397,-500.0,0.00046973,7]
[355826596,1741625440407,-500.0,0.00046973,10]
[355826597,1741625440417,-505.10632043,0.00046973,10]
[355826598,1741625440427,-500.0,0.00046973,10]
[355826599,1741625440436,-545.42852962,0.00046973,10]
[355826600,1741625440446,-506.45227993,0.00046973,10]
[355826601,1741625440456,-500.0,0.00046973,10]
[355826602,1741625440466,-500.0,0.00046973,10]
[355826603,1741625440476,-151.02734414,0.00046973,10]
[355826604,1741625440486,-500.0,0.00046973,10]
[355826605,1741625440495,-500.0,0.00046973,10]
[355826606,1741625440505,-500.0,0.00046973,10]
[355826607,1741625440515,-225.389919,0.00046973,10]
[355826608,1741625440525,-500.0,0.00046973,10]
[355826609,1741625440536,-500.0,0.00046973,7]
[355826610,1741625440547,-500.0,0.00046973,10]
[355826611,1741625440558,-500.0,0.00046973,10]
[355826612,1741625440569,-500.0,0.00046973,10]
[355826613,1741625440580,-611.61085525,0.00046973,10]
[355826614,1741625440590,-501.64102138,0.00046973,10]
[355826615,1741625440603,-500.0,0.00046973,10]
[355826616,1741625440614,-500.0,0.00046973,10]
[355826617,1741625440625,-500.0,0.00046973,10]
[355826618,1741625440635,-506.82325464,0.00046973,3]
[355826619,1741625440644,-500.0,0.00046973,10]
[355826620,1741625440654,-500.0,0.00046973,10]
[355826621,1741625440664,-500.0,0.00046973,10]
[355826622,1741625440674,-500.0,0.00046973,10]
[355826623,1741625440685,-500.0,0.00046973,10]
[355826624,1741625440694,-500.0,0.00046973,10]
[355826625,1741625440704,-500.0,0.00046973,7]
[355826626,1741625440835,-611.98482621,0.00046973,10]
[355826627,1741625440856,-506.1706964,0.00046973,10]
[355826628,1741625440867,-42990.8064788,0.0004698,4]
[355826629,1741625440878,-830.65493354,0.0004698,4]
[355826630,1741625440889,-5481.93,0.00046989,120]
[355826631,1741625440901,-42990.8064788,0.0004699,4]
[355826632,1741625440912,-1661.30986708,0.0004699,4]
[355826633,1741625440923,-70736.53442843,0.00047,120]
[355826634,1741625440933,-187.8958351,0.00047,120]
[355826635,1741625440943,-1953.0,0.00047,120]
[355826636,1741625440954,-1000.0,0.00047,30]
[355826637,1741625440966,-830.65493354,0.00047079,4]
[355826638,1741625440976,-151.0,0.00047081,2]
[355826639,1741625440987,-600.0,0.00047081,2]
[355826640,1741625440998,-42990.8064788,0.00047089,4]
[355826641,1741625441009,-1661.30986708,0.00047099,4]
[355826642,1741625441021,-867.89,0.000471,30]
[355826643,1741625441032,-174.21,0.00047108,7]
[355826644,1741625441043,-174.21,0.00047108,7]
[355826645,1741625441054,-93642.11733307,0.00047109,2]
[355826646,1741625441064,-622.2,0.00047136,2]
[355826647,1741625441074,-800.0,0.00047168,14]
[355826648,1741625441085,-500.0,0.00047173,10]
[355826649,1741625441099,-500.0,0.00047173,7]
[355826650,1741625441108,-645.2214,0.00047191,2]
[355826651,1741625441118,-397.48,0.000472,30]
[355826652,1741625441128,-2115.28931114,0.000472,23]
[355826653,1741625441140,-669.0945918,0.00047246,2]
[355826654,1741625441151,-282.72,0.00047249,30]
[355826655,1741625441160,-693.8510917,0.00047301,2]
[355826656,1741625441169,-719.52358209,0.00047356,2]
[355826657,1741625441179,-1023.00724975,0.00047383,11]
[355826658,1741625441190,-746.14595463,0.00047411,2]
[355826659,1741625441200,-773.75335495,0.00047466,2]
[355826660,1741625441210,-802.38222908,0.00047521,2]
[355826661,1741625441221,-5481.93,0.00047537,120]
[355826662,1741625441232,-832.07037156,0.00047576,2]
[355826663,1741625441242,-156.587,0.00047629,2]
[355826664,1741625441252,-862.8569753,0.00047631,2]
[355826665,1741625441262,-894.78268339,0.00047686,2]
[355826666,1741625441272,-927.88964268,0.00047741,2]
[355826667,1741625441282,-800.0,0.00047771,14]
[355826668,1741625441291,-962.22155946,0.00047796,2]
[355826669,1741625441301,-292.36772071,0.000478,120]
[355826670,1741625441311,-997.82375716,0.00047851,2]
[355826671,1741625441320,-2441.52756535,0.000479,120]
[355826672,1741625441331,-151.0,0.000479,29]
[355826673,1741625441340,-173.79690748,0.00047902,120]
[355826674,1741625441354,-173.79,0.00047902,120]
[355826675,1741625441365,-162.21044698,0.00047902,120]
[355826676,1741625441376,-162.21044698,0.00047902,120]
[355826677,1741625441387,-162.21044698,0.00047902,120]
[355826678,1741625441397,-162.21044698,0.00047902,120]
[355826679,1741625441407,-689.54018232,0.00047902,120]
[355826680,1741625441417,-689.54018232,0.00047902,120]
[355826681,1741625441427,-689.54018232,0.00047902,120]
[355826682,1741625441437,-689.54018232,0.00047902,120]
[355826683,1741625441447,-689.54018232,0.00047902,120]
[355826684,1741625441457,-689.54018232,0.00047902,120]
[355826685,1741625441467,-689.54018232,0.00047902,120]